Cogmind - Beta 9.4 @@@ ROGUE MODE // 2020.01.29 @ 19:34:36 // Winter2019/RPGLIKE Player: Rumbl3 Result: Destroyed by Y-45 Defender with Heavy Assault Rifle Performance ------------- Evolutions (2) 1000 Regions Visited (7) 1400 Robots Destroyed (60) 300 Value Destroyed (759) 759 Prototype IDs (25) 500 Alien Tech Used (0) 0 Bonus (63) 63 TOTAL SCORE: 4022 Bonus ------- Aligned with FarCom 300 Friendly Fire -237 Cogmind --------- Core Integrity 0/750 Matter 12/300 Energy 263/265 System Corruption 0% Temperature Cool (26) Movement Core (100) Ox1 Location -8/Materials Parts ------- > --- POWER (1) -------- Improved Ion Engine > --- PROPULSION (2) --- (None) > --- UTILITY (3) ------ Sensor Array Signal Interpreter Advanced Terrain Scanner > --- WEAPON (5) ------- XL Autogun Array Axe > --- INVENTORY (3) ---- Protomatter-51 Rocket Launcher Peak State ------------ > --- POWER ------------ Improved Ion Engine > --- PROPULSION ------- (None) > --- UTILITY ---------- Sensor Array Signal Interpreter Advanced Terrain Scanner > --- WEAPON ----------- XL Autogun Array Axe > --- INVENTORY -------- Protomatter Rocket Launcher [Rating: 46] Favorites ----------- Power Improved Ion Engine Engine Improved Ion Engine Propulsion Hover Unit Wheel Compact Wheel Hover Unit Hover Unit Utility Signal Interpreter Device Sensor Array Processor Signal Interpreter Weapon Assault Rifle Energy Gun Medium Laser Ballistic Gun Assault Rifle Launcher Grenade Launcher Slashing Weapon Axe Build | -11 -10 -10 -9 -9 -9 -8 -8 ------- Run | Scr Mat Min Mat Min Exi Min Mat Slots Evolved 7 | 1 2 2 . . 1 . 1 Power . | . . . . . . . . Propulsion 1 | . . 1 . . . . . Utility 2 | . 2 . . . . . . Weapon 4 | 1 . 1 . . 1 . 1 Parts Attached 26 | 3 5 5 8 2 2 . 1 Power 3 | . 2 . 1 . . . . Engine 3 | . 2 . 1 . . . . Core . | . . . . . . . . Reactor . | . . . . . . . . Propulsion 3 | 1 1 1 . . . . . Treads . | . . . . . . . . Leg . | . . . . . . . . Wheel 1 | 1 . . . . . . . Hover 2 | . 1 1 . . . . . Flight . | . . . . . . . . Utility 4 | 1 2 1 . . . . . Device 3 | 1 1 1 . . . . . Storage . | . . . . . . . . Processor 1 | . 1 . . . . . . Hackware . | . . . . . . . . Protection . | . . . . . . . . Artifact . | . . . . . . . . Weapon 16 | 1 . 3 7 2 2 . 1 Energy Gun 2 | 1 . 1 . . . . . Energy Cannon . | . . . . . . . . Ballistic Gun 6 | . . . 4 . 2 . . Ballistic Cannon . | . . . . . . . . Launcher 4 | . . 1 2 1 . . . Special Weapon . | . . . . . . . . Impact Weapon . | . . . . . . . . Slashing Weapon 4 | . . 1 1 1 . . 1 Piercing Weapon . | . . . . . . . . Special Melee Weapon . | . . . . . . . . Unidentified Prototypes 1 | . . . 1 . . . . Parts Lost 2 | . . . . . 2 . . Power . | . . . . . . . . Propulsion 2 | . . . . . 2 . . Utility . | . . . . . . . . Weapon . | . . . . . . . . Highest Loss Streak 2 | . . . . . 2 . . Average Slot Usage (%) 91 | . 99 100 100 100 83 50 52 Engine 12 | . 15 12 11 11 10 10 9 Wheel 2 | . 8 . . . . . . Hover 13 | . 6 18 22 22 20 . . Device 22 | . 22 24 22 22 21 20 18 Processor 11 | . 12 12 11 11 10 10 9 Energy Gun 5 | . 15 3 1 . . . . Ballistic Gun 15 | . 15 12 18 22 15 10 9 Launcher 2 | . . 8 3 . . . . Slashing Weapon 5 | . . 6 9 10 5 . 6 Naked Turns . | . . . . . . . . Heaviest Build 27 | 10 11 15 19 19 24 24 27 Greatest Support 27 | 16 16 17 22 22 27 18 18 Greatest Overweight (x) 2 | 2 1 1 1 . 1 1 1 Average Overweight (x) . | . . . . . . 1 1 Largest Inventory Capacity 3 | 1 2 2 2 2 3 3 3 Average Capacity 2 | . 1 2 2 2 2 3 3 Most Carried 3 | 1 2 2 2 2 3 3 3 Average Carried 1 | . 1 1 1 1 2 3 2 Final Capacity 3 | 1 2 2 2 2 3 3 3 Final Carried 3 | 1 2 2 2 2 3 3 2 Class Distribution -------------------- 44% | Scout 30% | Mutant 11% | Scavenger-Skirmisher 6% | Assassin 5% | Skirmisher Dominant Class ---------------- Mutant | -10/Materials Scout | -10/Mines Scout | -9/Materials Scout | -9/Mines Scout | -9/Exiles Skirmisher | -8/Mines Assassin | -8/Materials Resources | -11 -10 -10 -9 -9 -9 -8 -8 ----------- Run | Scr Mat Min Mat Min Exi Min Mat Matter Collected 1055 | 317 166 80 176 89 86 20 121 Remotely . | . . . . . . . . Salvage Created 1184 | 293 398 31 139 116 86 . 121 Parts 121 | 23 45 7 19 13 7 . 7 Haulers Intercepted 3 | . 2 . . . . . 1 Recyclers Shooed . | . . . . . . . . Parts Field Recycled . | . . . . . . . . Retrieved Matter . | . . . . . . . . Parts Self-Destructed . | . . . . . . . . Prevented . | . . . . . . . . Kills | -11 -10 -10 -9 -9 -9 -8 -8 ------- Run | Scr Mat Min Mat Min Exi Min Mat Combat Hostiles Destroyed 34 | . 8 3 7 5 7 . 4 Melee 1 | . . . . . . . 1 Guns 24 | . 8 . 4 2 7 . 3 AOE 9 | . . 3 3 3 . . . Classes Destroyed 10 | 3 4 1 1 . 1 . . Worker 5 | 2 1 . 1 1 . . . Builder 1 | . . 1 . . . . . Tunneler 9 | 8 . . . 1 . . . Hauler 3 | . 2 . . . . . 1 Recycler 2 | 1 1 . . . . . . Watcher 5 | . 3 . 2 . . . . Swarmer 18 | . 3 3 5 3 . . 4 Grunt 7 | . 5 . . 2 . . . Sentry 2 | . . . 2 . . . . Assembled 7 | . . . . . 7 . . Best Kill Streak 7 | 4 4 4 4 4 7 . 4 Combat Bots Only 6 | . 4 3 3 3 6 . 4 Max Kills in Single Turn 3 | 1 1 2 3 3 2 . 1 Gunslinging . | . . . . . . . . Exploded 3 | . . 2 2 3 . . . Melee 1 | . . . . . . . 1 Uniques/NPCs Destroyed 1 | . . . . . 1 . . EX-HEX (-9/Exiles) Combat | -11 -10 -10 -9 -9 -9 -8 -8 -------- Run | Scr Mat Min Mat Min Exi Min Mat Damage Taken 1725 | . 420 51 112 66 866 77 133 Core 1383 | . 352 38 88 54 690 58 103 Absorbed by Shields . | . . . . . . . . Redirected to Core 1036 | . 209 28 82 41 529 58 89 Core Remaining (%) 71 | 100 . 100 . . . 13 . Volleys Fired 123 | 29 42 2 10 7 24 . 9 Largest 3 | 2 2 1 3 2 1 . 1 Hottest 83 | 70 70 30 83 50 60 . 60 Shots Fired 206 | 58 84 2 18 11 24 . 9 Gun 197 | 58 84 . 14 8 24 . 9 Cannon . | . . . . . . . . Launcher 9 | . . 2 4 3 . . . Special . | . . . . . . . . Kinetic 126 | 29 42 . 14 8 24 . 9 Thermal 71 | 29 42 . . . . . . Explosive 9 | . . 2 4 3 . . . Electromagnetic . | . . . . . . . . Robot Hit Streak 15 | 8 9 1 4 3 15 . 6 Robot Miss Streak 8 | 4 4 1 2 2 4 . 8 Penetration Max . | . . . . . . . . Secondary Targets 1 | . 1 . . . . . . Max Gunslinging Chain 1 | . 1 . . . . . . Shots Hit Robots 131 | 36 45 2 8 7 23 . 10 Core Hits 83 | 12 27 4 12 9 14 . 5 Critical Hits 4 | 1 1 . . 2 . . . Critical Kills 2 | . . . . 2 . . . Critical Parts Destroyed 2 | 1 1 . . . . . . Melee Attacks 22 | . . 3 3 2 6 . 8 Impact . | . . . . . . . . Slashing 22 | . . 3 3 2 6 . 8 Piercing . | . . . . . . . . Sneak Attacks 5 | . . 1 1 2 . . 1 Combat Hostiles . | . . . . . . . . Follow-up Attacks . | . . . . . . . . Damage Inflicted 4060 | 494 627 250 453 544 1204 . 488 Guns 2891 | 494 627 . 147 54 1204 . 365 Cannons . | . . . . . . . . Explosions 614 | . . 154 183 277 . . . Melee 555 | . . 96 123 213 . . 123 Ramming . | . . . . . . . . Kinetic 2275 | 230 275 . 147 54 1204 . 365 Thermal 616 | 264 352 . . . . . . Explosive 614 | . . 154 183 277 . . . Electromagnetic . | . . . . . . . . Impact . | . . . . . . . . Slashing 555 | . . 96 123 213 . . 123 Piercing . | . . . . . . . . Highest Corruption . | . . . . . . . . Average Corruption . | . . . . . . . . Corruption Purged . | . . . . . . . . Overload Shots . | . . . . . . . . Overflow Damage 25 | . . . 7 18 . . . Projectiles . | . . . . . . . . Explosions 25 | . . . 7 18 . . . Melee . | . . . . . . . . Knockbacks . | . . . . . . . . Impact . | . . . . . . . . Kinetic . | . . . . . . . . Secondary . | . . . . . . . . Self-Inflicted Damage 22 | . . 22 . . . . . Shots 2 | . . 2 . . . . . Rammed . | . . . . . . . . Targets Rammed . | . . . . . . . . Kicked . | . . . . . . . . Crushed . | . . . . . . . . Highest Temperature 522 | 81 127 . 48 50 522 . 85 Average Temperature 51 | 34 34 . 21 26 179 . 38 Received Heat Transfer 289 | . 168 . 18 27 40 18 18 Effects 2 | . . . . . 2 . . Shutdowns 1 | . . . . . 1 . . Damage (minor) 1 | . . . . . 1 . . Siege Activations . | . . . . . . . . Robots Corrupted . | . . . . . . . . Combat Hostiles . | . . . . . . . . Parts Fried . | . . . . . . . . Impact Corruptions . | . . . . . . . . Robots Melted . | . . . . . . . . Combat Hostiles . | . . . . . . . . Parts Melted 3 | 2 1 . . . . . . Heat Transferred 1813 | 777 1036 . . . . . . Parts Sabotaged . | . . . . . . . . Parts Stolen . | . . . . . . . . Parts Stripped . | . . . . . . . . Power Chain Reactions . | . . . . . . . . Missiles Intercepted . | . . . . . . . . Alert | -11 -10 -10 -9 -9 -9 -8 -8 ------- Run | Scr Mat Min Mat Min Exi Min Mat Peak Influence 323 | 55 276 163 323 300 . . 137 Average Influence 137 | 30 147 140 224 240 . . 27 Maximum Alert Level 1 | . 1 . 1 1 . . . Low Security (%) 76 | 100 69 100 31 47 . 100 100 Level 1 23 | . 30 . 68 52 . . . Level 2 . | . . . . . . . . Level 3 . | . . . . . . . . Level 4 . | . . . . . . . . Level 5 . | . . . . . . . . High Security . | . . . . . . . . Max Security . | . . . . . . . . Squads Dispatched 1 | . . 1 . . . . . Investigation 1 | . . 1 . . . . . Extermination . | . . . . . . . . Reinforcement . | . . . . . . . . Assault . | . . . . . . . . Garrison . | . . . . . . . . Intercept . | . . . . . . . . Construction Impeded . | . . . . . . . . Haulers Reinforced . | . . . . . . . . Stealth | -11 -10 -10 -9 -9 -9 -8 -8 --------- Run | Scr Mat Min Mat Min Exi Min Mat Distress Signals 3 | . 1 . 2 . . . . Communications Jammed . | . . . . . . . . Distress Signals . | . . . . . . . . Times Spotted 54 | . 19 4 8 5 8 5 5 Peak Tracking Total 9 | . 6 3 4 3 9 7 4 Tactical Retreats 3 | . 3 . . . . . . Traps | -11 -10 -10 -9 -9 -9 -8 -8 ------- Run | Scr Mat Min Mat Min Exi Min Mat Traps Triggered 1 | . 1 . . . . . . Indirectly . | . . . . . . . . Trap Hack Attempts . | . . . . . . . . Triggered . | . . . . . . . . Disarmed . | . . . . . . . . Reprogrammed . | . . . . . . . . Reused . | . . . . . . . . Traps Extracted . | . . . . . . . . Installed . | . . . . . . . . Triggered . | . . . . . . . . Machines | -11 -10 -10 -9 -9 -9 -8 -8 ---------- Run | Scr Mat Min Mat Min Exi Min Mat Machines Disabled 10 | . . . 1 2 6 . 1 Max in Single Turn 2 | . . . 1 2 2 . 1 Garrison Access 1 | . . . . . . . 1 Machines Sabotaged . | . . . . . . . . Garrisons Compromised . | . . . . . . . . Overloaded Fab Kills . | . . . . . . . . Fab Network Shutdowns . | . . . . . . . . Hacking | -11 -10 -10 -9 -9 -9 -8 -8 --------- Run | Scr Mat Min Mat Min Exi Min Mat Machines Accessed 12 | . 4 2 2 . 2 . 2 Terminals 7 | . 3 1 2 . . . 1 Fabricators . | . . . . . . . . Repair Stations . | . . . . . . . . Recycling Units 1 | . 1 . . . . . . Scanalyzers . | . . . . . . . . Garrison Access 1 | . . . . . . . 1 Total Hacks 26 | . 8 4 9 . 2 . 3 Successful 16 | . 4 2 7 . 2 . 1 Failed 10 | . 4 2 2 . . . 2 Catastrophic 2 | . 2 . . . . . . Database Lockouts . | . . . . . . . . Manual 13 | . 5 3 4 . 1 . . Terminals 21 | . 7 3 9 . . . 2 Fabricators . | . . . . . . . . Repair Stations . | . . . . . . . . Recycling Units 1 | . 1 . . . . . . Scanalyzers . | . . . . . . . . Garrison Access 1 | . . . . . . . 1 Terminal Hacks 11 | . 2 2 5 . 2 . . Record 1 | . . . . . 1 . . Prototype ID Bank 1 | . . 1 . . . . . Open Door 1 | . . 1 . . . . . Branch Access Points 1 | . . . 1 . . . . Alert Level 1 | . . . 1 . . . . Locate Traps 3 | . 1 . 2 . . . . Transport Status 1 | . 1 . . . . . . Zone Layout 1 | . . . 1 . . . . EX-Prototype ID Bank 1 | . . . . . 1 . . Fabricator Hacks . | . . . . . . . . Repair Station Hacks . | . . . . . . . . Recycling Unit Hacks 1 | . 1 . . . . . . Retrieve Components 1 | . 1 . . . . . . Scanalyzer . | . . . . . . . . Garrison Access Hacks 1 | . . . . . . . 1 Seal Access 1 | . . . . . . . 1 Unauthorized Hacks 7 | . 3 . 4 . . . . Terminals 3 | . 1 . 2 . . . . Botnet 3 | . 1 . 2 . . . . Fabricators . | . . . . . . . . Repair Stations . | . . . . . . . . Recycling Units . | . . . . . . . . Scanalyzers . | . . . . . . . . Garrison Access . | . . . . . . . . Data Cores Recovered . | . . . . . . . . Used . | . . . . . . . . Hacking Detections 7 | . 3 1 2 . . . 1 Full Trace Events 2 | . 1 . 1 . . . . Feedback Events . | . . . . . . . . Feedback Blocked . | . . . . . . . . Robot Schematics Acquired . | . . . . . . . . Robots Built . | . . . . . . . . Matter . | . . . . . . . . Time . | . . . . . . . . Total Robot Build Rating . | . . . . . . . . Part Schematics Acquired . | . . . . . . . . Parts Built . | . . . . . . . . Matter . | . . . . . . . . Time . | . . . . . . . . Total Part Build Rating . | . . . . . . . . Parts Repaired . | . . . . . . . . Time . | . . . . . . . . Parts Recycled . | . . . . . . . . Recycled Matter . | . . . . . . . . Retrieved Matter . | . . . . . . . . Retrieved Components 10 | . 10 . . . . . . Parts Scanalyzed . | . . . . . . . . Part Schematics Acquired . | . . . . . . . . Parts Damaged . | . . . . . . . . Bothacking | -11 -10 -10 -9 -9 -9 -8 -8 ------------ Run | Scr Mat Min Mat Min Exi Min Mat Used RIF Installer . | . . . . . . . . Robots Hacked . | . . . . . . . . Non-combat . | . . . . . . . . Combat . | . . . . . . . . Robot Hacks Applied . | . . . . . . . . Relay Couplers Released . | . . . . . . . . Robots Rewired . | . . . . . . . . Allies Hacked . | . . . . . . . . Hacks Repelled . | . . . . . . . . Allies | -11 -10 -10 -9 -9 -9 -8 -8 -------- Run | Scr Mat Min Mat Min Exi Min Mat Total Allies . | . . . . . . . . Largest Group . | . . . . . . . . Highest-Rated Group . | . . . . . . . . Highest-Rated Ally . | . . . . . . . . Total Orders . | . . . . . . . . Ally Attacks . | . . . . . . . . Total Damage . | . . . . . . . . Kills . | . . . . . . . . Allies Corrupted . | . . . . . . . . Allies Melted . | . . . . . . . . Intel | -11 -10 -10 -9 -9 -9 -8 -8 ------- Run | Scr Mat Min Mat Min Exi Min Mat Robot Analysis Total . | . . . . . . . . Derelict Logs Recovered 3 | . . 1 . 2 . . . Drone Launches . | . . . . . . . . Drone Recoveries . | . . . . . . . . Exploration | -11 -10 -10 -9 -9 -9 -8 -8 ------------- Run | Scr Mat Min Mat Min Exi Min Mat Turns Passed 2178 | 236 554 374 190 282 301 29 212 Spaces Moved 2145 | 25 371 460 234 430 416 30 179 Core 228 | 1 . . . . 18 30 179 Treads . | . . . . . . . . Legs . | . . . . . . . . Wheels 205 | 24 181 . . . . . . Hover 1712 | . 190 460 234 430 398 . . Flight . | . . . . . . . . Fastest Speed 56 | 100 60 56 56 56 56 100 100 Average Speed 74 | 102 106 74 58 56 58 100 100 Slowest Speed 150 | 150 120 120 116 56 120 100 100 Overloaded Moves . | . . . . . . . . Propulsion Burnouts . | . . . . . . . . Robots Hopped . | . . . . . . . . Cave-ins Triggered . | . . . . . . . . Exploration Rate (%) 45 | 3 52 96 28 97 53 10 25 Regions Visited 7 Branch Regions 4 Pre-discovered Areas 3 | . . 1 . 1 1 . . Known Exits Taken 6 | . 1 1 1 1 1 1 . Unknown Exits Taken 1 | 1 . . . . . . . Scrap Searched 3 | . . 1 . 1 . 1 . Spaces Dug 8 | . . 1 2 . 2 . 3 Terrain Destroyed 126 | . . 22 38 33 19 . 14 Melee 8 | . . 1 2 . 2 . 3 Projectile 28 | . . . . . 17 . 11 AOE 90 | . . 21 36 33 . . . Actions | -11 -10 -10 -9 -9 -9 -8 -8 --------- Run | Scr Mat Min Mat Min Exi Min Mat Total 2520 | 176 445 485 268 457 462 29 198 Wait 144 | 118 4 8 2 9 2 . 1 Move 2138 | 24 370 459 233 429 415 29 179 Hop . | . . . . . . . . Pick Up 9 | 1 2 2 2 1 1 . . Fast Attach 15 | 3 5 1 4 . 2 . . Attach 2 | . . 1 . . . . 1 Detach . | . . . . . . . . Swap 9 | . . 3 4 2 . . . Drop 17 | 1 3 2 6 1 4 . . Fire 123 | 29 42 2 10 7 24 . 9 Melee 22 | . . 3 3 2 6 . 8 Ram . | . . . . . . . . Kick . | . . . . . . . . Crush . | . . . . . . . . Escape Stasis . | . . . . . . . . Rewire . | . . . . . . . . Trap . | . . . . . . . . Miscellaneous 41 | . 19 4 4 6 8 . . Route ------- -11/Scrapyard -10/Materials (discovered 3 exits: *Mat x2 / *Min) -10/Mines (discovered 2 exits: *Mat x2) -9/Materials -9/Mines (discovered 3 exits: *Mat x2 / *Exi) -9/Exiles -8/Mines -8/Materials History --------- Turn | Location | Event 2 | -11/Scrapyard | Discovered new exit (range 1) 6 | -11/Scrapyard | Upgraded with Weapon slot (x1) 237 | -11/Scrapyard | Entered Materials 293 | -10/Materials | Discovered new exit (range 10) 309 | -10/Materials | Build established: Mutant 325 | -10/Materials | Upgraded with Utility slot (x1) 336 | -10/Materials | Identified exit to Materials 441 | -10/Materials | Discovered exit to Materials (range 9) 525 | -10/Materials | Upgraded with Utility slot (x1) 645 | -10/Materials | Discovered new exit (range 15) 790 | -10/Materials | Identified exit to Mines 791 | -10/Materials | Entered Mines 793 | -10/Mines | Reached level 2 943 | -10/Mines | Met a Derelict shopkeep closing up shop 951 | -10/Mines | Learned location of Zion (-7) 954 | -10/Mines | Upgraded with Weapon slot (x1) 956 | -10/Mines | Upgraded with Propulsion slot (x1) 1004 | -10/Mines | Received a Rocket Launcher from a helpful Derelict 1017 | -10/Mines | Discovered exit to Materials (range 9) 1032 | -10/Mines | Discovered exit to Materials (range 18) 1077 | -10/Mines | Excavation squad dispatched 1077 | -10/Mines | A large section of the Mines collapsed 1165 | -10/Mines | Entered Materials 1167 | -9/Materials | Reached level 3 1193 | -9/Materials | Discovered new exit (range 12) 1270 | -9/Materials | Build established: Scout 1288 | -9/Materials | Identified exit to Mines 1288 | -9/Materials | Reached level 4 1355 | -9/Materials | Entered Mines 1356 | -9/Mines | Met a Derelict bent on vengeance 1428 | -9/Mines | Learned 2 Materials zone layouts 1440 | -9/Mines | Discovered new exit (range 11) 1464 | -9/Mines | Found a hidden stash of uninstalled traps 1600 | -9/Mines | Discovered new exit (range 5) 1602 | -9/Mines | Identified exit to Materials 1635 | -9/Mines | Deemed a non-threat by the Exiles lab entrance 1635 | -9/Mines | Discovered new exit (range 5) 1637 | -9/Mines | Identified exit to Exiles 1637 | -9/Mines | Entered Exiles 1646 | -9/Exiles | Discovered new exit (range 14) 1675 | -9/Exiles | Met 8R-AWN 1683 | -9/Exiles | Met EX-HEX 1702 | -9/Exiles | Met EX-BIN 1746 | -9/Exiles | Met EX-DEC 1769 | -9/Exiles | Reached level 5 1769 | -9/Exiles | Aligned with FarCom system 1770 | -9/Exiles | Given EX-Vault access code 1785 | -9/Exiles | Opened EX-Vault 1788 | -9/Exiles | Upgraded with Weapon slot (x1) 1790 | -9/Exiles | Found AWS/Gauss 1793 | -9/Exiles | Found XL Autogun Array 1810 | -9/Exiles | Warned to stay clear of 0b10 Research branches 1851 | -9/Exiles | Attacked by the Exiles 1851 | -9/Exiles | Destroyed EX-HEX 1878 | -9/Exiles | Core integrity fell below 50% 1937 | -9/Exiles | Identified exit to Mines 1938 | -9/Exiles | Left Exiles lab with XL Autogun Array 1938 | -9/Exiles | Entered Mines 1945 | -8/Mines | Core integrity fell below 20% 1955 | -8/Mines | Discovered exit to Materials (range 14) 1967 | -8/Mines | Entered Materials 1968 | -8/Materials | Core integrity fell below 50% 1968 | -8/Materials | Core integrity fell below 20% 1969 | -8/Materials | Reached level 6 2034 | -8/Materials | Upgraded with Weapon slot (x1) 2179 | -8/Materials | Destroyed by Y-45 Defender with Heavy Assault Rifle Last Messages --------------- 02034_ Upgraded: Weapon Slot (+1) 02035_ Sneak attack on A-02 Transporter. 02035_ A-02 Transporter destroyed. 02038_ Acquired 52 matter. 02053_ T-07 Excavator is excavating. 02055_ Connecting with Terminal... 02057_ T-07 Excavator is excavating. 02085_ K-01 Serf collects debris. 02133_ Material Processor disabled. 02133_ S-10 Pest destroyed. 02136_ Destroyed Flight Unit. 02136_ S-10 Pest destroyed. 02138_ Acquired 15 matter. 02139_ Acquired 18 matter. 02140_ Acquired 15 matter. 02141_ Destroyed Flight Unit. 02142_ U-05 Engineer builds a Wall. 02156_ S-10 Pest destroyed. 02158_ Acquired 21 matter. 02168_ K-01 Serf collects debris. Map ----- +----------------------------------------------------+ | ?????????????????????????????????????????????????? | | ??????????????????????????????#??????????????????? | | ??????????????????????#??????????????????????????? | | ?????????????????????????????????????????????????? | | ?????????????????????#????????? ?????????????????? | | ?????????????????????????????????????????????????? | | ????????????????#??#??????#?????????"????????????? | | ?????????????????#?#??????????#? ?"??????????????? | | ??????????????????????#???#?#?? ?"????? ????????? | | ??????????#????##??#?##?#???###??????????????????? | | ???????????????#?#????##?#???????????"?#?? ??????? | | ??????????????##???#???#?#????? ??"""????????????? | | "???##????? ? #?##????#???##??#??? ? ????? ?????? | | ????#????? ? ??#??#??#####?#???????#??#?? ??????? | | ? ????#??#? ??#?##???###??###????#?#### ????#??? | | ???#???#?## ?##??##??#?##??#???#?#????????#?#?#?? | | #??#?#????# ???#?#?????#??##### #######? ? ??#???? | | ???#?#?##? ############## ? ? ?#????? | | ??##?#??#? k #####??##??????? | | ?#???#??## x ?? ???? | | ???####### ? | | ?###?##### ? ?##########Y;## ? ?? | | #?##??#?##??###?#?# ####??#######?#?##?#?? | | #######???######?## ########?#####?######? | | !############## """ ####??#?###?#?#?####?? | | """ #####?######## """""@ ###################### | | """ !#?######??#### """"" # ] | | """ ########?## ## """"= # | | #?#####?#### # = * # """ """ """ """ | | ? ############ # [ # """"""""" """""""" | | #+##############"##;;;=#;#### """"" """"" | | T ###### ###### | | ###?######?## | | ### """ ############# """ """ | | ### """ ] ]x """"""""" !! | | ### """ =]! """"" !! | | ### x | | +### ############# [ | | ###### ###+############?# #####+ | | ####?# ## ###??####+######### # | | ##?### ## ????#### ?##??# # """ | | #?#### ## #####? ? #?#?# # """ | | # # ## """ """ ###?# #???##### """ | | #?# ## """ """ #####?? ??#???#?### | | # ## # ## """ """ ##### !!! ####??#?# """ | | #?#### ## ?#### !!! [????#?#### """ | | +####### ! # ##### !! ######??# """ | | #########?##??# ???####?# | | #?#####?###??#############?#?######### | | ######## ##?##???#??#??#?#??#?#???#?#??#??##??? | +----------------------------------------------------+ Best States ------------- Heat Dissipation 49 Energy Generation 12 Energy Capacity 265 Matter Stores 300 Matter Capacity 300 Sight Range 16 Robot Scan Range 12 Terrain Scan Range 20 Terrain Scan Density 110 Evasion (%) 53 Item Schematics ----------------- None Robot Schematics ------------------ None Fabricated ------------ Nothing Alien Tech Used ----------------- None Achievements -------------- None Challenges ------------ None RPGLIKE | -11 -10 -10 -9 -9 -9 -8 -8 --------- Run | Scr Mat Min Mat Min Exi Min Mat Levels Raised 5 | . . 1 2 . 1 . 1 XP Earned 11695 | 3000 1125 880 2530 1250 350 500 2060 XP Spent 9425 | 750 2000 1300 600 . 3375 . 1400 Upgrades 22 | 2 6 2 1 . 10 . 1 Propulsion Slot 1 | . . 1 . . . . . Utility Slot 2 | . 2 . . . . . . Weapon Slot 4 | 1 . 1 . . 1 . 1 Core Integrity 3 | . . . . . 3 . . Heat Dissipation 4 | . . . . . 4 . . Mass Support 3 | . 1 . 1 . 1 . . Inventory Capacity 3 | 1 1 . . . 1 . . Sensor Range 1 | . 1 . . . . . . Terrain Scan Density 1 | . 1 . . . . . . Protomatter Created 264 | . 142 . 51 33 38 . . Integrity Restored 745 | . 417 62 54 98 114 . . Core 631 | . 352 38 54 73 114 . . Parts 114 | . 65 24 . 25 . . . Protomatter Decayed -1 | . . . -1 . . . . Game ------ Seed LightVariableBooster Manual? 0 Play Time 00:34:13 Cumulative 412.1 hours Start 2020.01.29 @ 19:02:21 End 2020.01.29 @ 19:34:36 Sessions 1 Manual Loads 0 Difficulty Rogue Special Mode Winter2019/RPGLIKE Game No. 158 Rogue 158 Adventurer 0 Explorer 0 Win Type - Total 13 Types 9/1/1/2/0/0/0 Lore% 92 Gallery% 88 Achievement% 71 Wizard Run 0 Options --------- ASCII 0 Keyboard 0 Movement Numpad Keybinds 0 Fullscreen 0 Font 14/Dina Map View 76x50 Tactical HUD 1 Map Filters NONE Filters NONE Steam 1 RUN: ca91ad20-c9fc-4f6d-a5fd-f00dd48c8ac3